bitfinex/quotes_ETHUSD_20220201
["timestamp","ask_amount","ask_price","bid_price","bid_amount"]
[1643757611850,1.1275,2793.4,2792.1,1.96921]
[1643757612051,1.1275,2793.4,2792.2,0.63715857]
[1643757612052,1.3064,2793.4,2792.2,0.63715857]
[1643757612452,1.3064,2793.4,2792.1,0.3]
[1643757612696,1.1275,2793.4,2792.0,0.3]
[1643757612899,0.3582,2793.3,2791.5,0.441911]
[1643757613098,0.96284142,2792.7,2791.5,0.25]
[1643757613295,0.96284142,2792.7,2791.3,0.1392]
[1643757613296,0.1789,2792.6,2791.3,2.0]
[1643757613703,0.1789,2792.6,2791.3,5.76989478]
[1643757613905,0.4789,2792.8,2791.4,0.1789]
[1643757614109,0.1789,2792.8,2791.5,0.17935]
[1643757614306,0.1789,2792.8,2791.9,0.01215301]
[1643757614505,0.1789,2792.8,2792.4,0.03715857]
[1643757614707,0.1789,2792.8,2792.7,0.03715857]
[1643757614908,1.1206012,2793.5,2792.8,0.1789]
[1643757615107,1.1206012,2793.5,2793.0,0.03715857]
[1643757615307,1.1206012,2793.5,2792.8,0.1789]
[1643757615509,1.1206012,2793.5,2792.6,0.1789]
[1643757615510,1.11951447,2793.5,2792.6,0.1789]
[1643757615712,1.11951447,2793.5,2792.5,0.01243493]
[1643757615713,1.11951447,2793.5,2792.5,0.19133493]
[1643757615906,1.11951447,2793.5,2792.5,0.1789]
[1643757616369,1.11951447,2793.5,2792.5,3.91216975]
[1643757616964,1.11951447,2793.5,2792.6,1.95831775]
[1643757617165,1.11951447,2793.5,2792.7,20.35952407]
[1643757617366,1.11951447,2793.5,2792.8,20.18049266]
[1643757617568,1.41951447,2793.5,2792.8,20.18049266]
[1643757617866,0.179,2793.4,2792.8,20.18049266]
[1643757618670,0.3583,2793.4,2792.8,20.18049266]
[1643757619075,0.179,2793.4,2792.8,20.18049266]
[1643757619274,1.71951447,2793.5,2792.8,20.18049266]
[1643757619774,2.71951447,2793.5,2792.8,20.18049266]
[1643757620196,1.71951447,2793.5,2792.8,20.18049266]
[1643757620398,1.1793,2793.4,2792.8,20.18049266]
[1643757620602,0.1793,2793.4,2792.8,20.18049266]
[1643757620899,1.1793,2793.4,2792.8,20.18049266]
[1643757621099,0.1793,2793.4,2792.8,20.18049266]
[1643757621298,1.1793,2793.4,2792.8,20.18049266]
[1643757621502,0.1793,2793.4,2792.8,20.18049266]
[1643757621701,1.1793,2793.4,2792.8,18.56604577]
[1643757621898,0.1793,2793.4,2792.8,18.56604577]
[1643757622098,1.1793,2793.4,2792.8,18.56604577]
[1643757622300,0.1793,2793.4,2792.8,18.56604577]
[1643757622500,1.1793,2793.4,2792.8,18.56604577]
[1643757622701,0.1793,2793.4,2792.8,18.56604577]
[1643757622902,1.1793,2793.4,2792.8,18.56604577]
[1643757623105,1.71951447,2793.5,2792.8,18.56604577]
[1643757623302,1.41951447,2793.5,2792.8,18.56604577]
[1643757624367,1.11951447,2793.5,2793.4,0.03715857]
[1643757624569,0.360466,2793.7,2793.5,1.05]
[1643757624570,0.181566,2793.7,2793.5,1.05]
[1643757624767,0.181566,2793.7,2793.6,4.78772166]
[1643757624966,0.181566,2793.7,2793.6,22.92707166]
[1643757625166,0.181566,2793.7,2793.6,1.70056309]
[1643757625366,0.1095685,2793.7,2793.6,3.08772166]
[1643757625565,0.05,2794.0,2793.8,1.079]
[1643757625766,0.05,2794.0,2793.9,1.43725]
[1643757625969,0.05,2794.0,2793.9,1.2579]
[1643757627609,0.05,2794.0,2793.0,20.17717204]
[1643757627610,1.05,2793.9,2793.0,20.17717204]
[1643757627808,2.0,2793.8,2793.0,20.17717204]
[1643757628007,2.65,2793.9,2793.0,20.17717204]
[1643757628210,2.28931495,2793.8,2793.0,20.17717204]
[1643757628609,3.28931495,2793.8,2793.0,20.17717204]
[1643757629517,0.1793,2793.7,2793.0,20.17717204]
[1643757629912,0.96284142,2793.6,2793.0,20.17717204]
[1643757630114,2.50511786,2793.5,2793.0,20.17717204]
[1643757630414,0.43,2793.4,2793.0,20.17717204]
[1643757630614,2.23760683,2793.3,2793.0,20.17717204]
[1643757630812,2.83760683,2793.3,2793.0,20.17717204]
[1643757631013,2.83760683,2793.3,2792.2,0.1789]
[1643757633847,3.01690683,2793.3,2792.2,0.1789]
[1643757634050,22.6189,2793.4,2792.2,0.1789]
[1643757634051,0.6089,2793.4,2792.2,0.21605857]
[1643757634252,3.671,2793.8,2792.2,0.21605857]
[1643757634253,0.1789,2793.7,2792.6,0.03715857]
[1643757634451,0.1789,2793.7,2792.4,0.1789]
[1643757634452,2.18061298,2793.7,2792.4,0.1789]
[1643757634660,2.17912571,2793.7,2792.4,0.1789]
[1643757634853,2.17912571,2793.7,2792.3,0.1789]
[1643757635093,23.18912571,2793.7,2792.2,0.1789]
[1643757635298,23.36842571,2793.7,2792.2,0.1789]
[1643757635494,1.0,2793.6,2792.2,0.1789]
[1643757635696,2.74358615,2793.5,2792.2,0.1789]
[1643757635894,3.04358615,2793.5,2792.2,0.1789]
[1643757636095,1.0,2793.4,2792.2,0.1789]
[1643757636303,2.22665534,2793.3,2792.2,0.1789]
[1643757636799,2.52665534,2793.3,2792.2,0.1789]
[1643757637001,1.0,2793.4,2792.4,0.03715857]
[1643757637002,1.3,2793.4,2792.4,0.03715857]
[1643757637206,2.04523714,2793.4,2792.4,0.03715857]
[1643757637400,2.05466237,2793.4,2792.4,0.03715857]
[1643757637602,2.35466237,2793.4,2792.4,0.03715857]
[1643757638003,24.66466237,2793.4,2792.2,0.1789]
[1643757638202,0.1793,2793.3,2792.2,0.1789]
[1643757638604,2.35466237,2793.4,2792.2,0.1789]
[1643757639050,0.3,2793.4,2792.2,0.1789]
[1643757639254,0.4789,2793.6,2792.4,0.03715857]
[1643757639651,0.1789,2793.6,2792.4,0.03715857]
[1643757640654,3.65059172,2793.7,2792.5,0.1789]
[1643757640854,24.66059172,2793.7,2792.2,0.1789]
[1643757641053,24.96059172,2793.7,2792.2,0.21605857]
[1643757641455,24.96059172,2793.7,2792.2,0.1789]
[1643757642256,23.96059172,2793.7,2792.2,0.1789]
[1643757642458,23.18129172,2793.7,2792.6,0.03715857]
[1643757643301,23.18129172,2793.7,2792.3,0.03715857]
[1643757643507,23.18129172,2793.7,2792.4,0.1789]
[1643757643707,1.51308951,2793.6,2792.4,0.1789]
[1643757643912,2.04262948,2793.5,2792.3,3.6789]
[1643757644109,2.04262948,2793.5,2792.6,0.03715857]
[1643757644311,2.04262948,2793.5,2792.4,0.03715857]
[1643757644615,1.51305716,2793.4,2792.4,0.03715857]
[1643757644811,1.51305716,2793.4,2792.3,3.6789]
[1643757645410,1.51305716,2793.4,2792.6,0.03715857]
[1643757646354,1.51305716,2793.4,2792.3,3.6789]
[1643757646556,1.51305716,2793.3,2792.3,3.6789]
[1643757646761,2.92896756,2793.7,2792.4,0.17935]
[1643757646762,1.51305716,2793.2,2792.4,0.17935]
[1643757646957,1.51302851,2793.1,2792.4,0.17935]
[1643757647157,1.51302851,2793.0,2792.4,0.17935]
[1643757647355,1.51302851,2793.0,2792.5,0.1789]
[1643757647561,0.67782033,2793.7,2792.5,0.1789]
[1643757647757,1.5129307,2793.6,2792.5,0.1789]
[1643757647957,1.5129307,2793.5,2792.5,0.1789]
[1643757648158,4.34882033,2793.8,2792.5,0.1789]
[1643757648159,1.5129307,2793.4,2792.5,0.1789]
[1643757648359,1.5129307,2793.3,2792.5,0.1789]
[1643757648558,1.5129307,2793.2,2792.5,0.1789]
[1643757648758,1.5129307,2793.1,2792.5,0.1789]
[1643757648958,2.18966438,2793.7,2792.5,0.1789]
[1643757649159,1.5129307,2793.6,2792.5,0.1789]
[1643757649361,1.5129307,2793.5,2792.5,0.1789]
[1643757649560,1.5129307,2793.4,2792.5,0.1789]
[1643757649759,1.5129307,2793.3,2792.5,0.1789]
[1643757650097,1.5129307,2793.2,2792.5,0.1789]
[1643757650296,1.5129307,2793.1,2792.5,0.1789]
[1643757650496,3.671,2793.8,2792.5,0.1789]
[1643757652296,3.671,2793.8,2792.5,2.32434721]
[1643757652499,0.1789,2793.9,2792.6,0.19215845]
[1643757652705,0.05,2794.0,2792.6,21.63215845]
[1643757652898,0.05,2794.0,2792.7,2.632148]
[1643757653100,0.05,2794.0,2792.8,0.17935]
[1643757653301,0.05,2794.0,2792.8,2.73953641]
[1643757653501,0.05,2794.0,2792.9,2.2068819]
[1643757653700,0.05,2794.0,2793.0,0.1789]
[1643757654455,0.05,2794.0,2793.1,0.17935]
[1643757654656,0.05,2794.0,2793.2,0.1789]
[1643757655458,0.05,2794.0,2792.9,0.1789]
[1643757656856,0.05,2794.0,2792.8,1.56018641]
[1643757658099,0.05,2794.0,2792.9,0.1789]
[1643757659507,0.05,2794.0,2792.9,2.53532999]
[1643757659710,0.05,2794.0,2793.0,1.0]
[1643757659908,0.05,2794.0,2793.1,3.16138947]
[1643757660106,0.05,2794.0,2793.2,0.43]
[1643757660310,0.05,2794.0,2793.3,2.4562216]
[1643757660512,0.05,2794.0,2793.3,2.8862216]
[1643757660709,0.05,2794.0,2793.3,0.78825]
[1643757661359,0.05,2794.0,2793.3,0.60935]
[1643757662562,0.05,2794.0,2793.2,0.1789]
[1643757662763,0.05,2794.0,2792.9,0.1789]
[1643757662964,0.04891212,2794.0,2792.9,0.1789]
[1643757663169,0.04891212,2794.0,2792.9,0.35825]
[1643757663465,0.04891212,2794.0,2792.9,2.38082077]
[1643757663664,0.04891212,2794.0,2792.9,2.41167044]
[1643757664166,0.04891212,2794.0,2793.3,0.01216364]
[1643757664363,0.04891212,2794.0,2793.4,0.1789]
[1643757665401,0.04891212,2794.0,2793.4,0.17935]
[1643757665702,0.04891212,2794.0,2793.5,0.1789]
[1643757667706,0.04891212,2794.0,2793.6,0.17935]
[1643757675306,0.04891212,2794.0,2793.6,1.07384]
[1643757675806,0.04891212,2794.0,2793.7,2.23685363]
[1643757676008,0.04891212,2794.0,2793.7,4.09811937]
[1643757676206,0.04891212,2794.0,2793.7,5.09811937]
[1643757676464,0.04891212,2794.0,2793.9,1.27935]
[1643757676765,0.04891212,2794.0,2793.9,0.17935]
[1643757676962,0.04891212,2794.0,2793.9,1.27935]
[1643757676963,0.04782739,2794.0,2793.9,1.27935]
[1643757677162,0.04782739,2794.0,2793.9,9.377015]
[1643757678362,0.04782739,2794.0,2793.9,7.33785]
[1643757678571,0.04782739,2794.0,2793.9,7.1585]
[1643757683960,0.04782739,2794.0,2793.9,7.17070544]
[1643757684157,0.04782739,2794.0,2793.9,7.33785]
[1643757684356,0.04782739,2794.0,2793.9,7.1585]
[1643757685056,0.04782739,2794.0,2793.9,9.28982137]
[1643757685256,0.04782739,2794.0,2793.9,7.33785]
[1643757686059,0.04782739,2794.0,2793.9,9.43222751]
[1643757686264,0.04782739,2794.0,2793.9,9.68890137]
[1643757686458,0.04782739,2794.0,2793.9,7.51675]
[1643757687460,0.04782739,2794.0,2793.9,7.3374]
[1643757687901,0.04782739,2794.0,2793.9,7.1585]
[1643757693547,0.04655332,2794.0,2793.9,7.1585]
[1643757694554,0.04655332,2794.0,2793.9,8.05294]
[1643757694859,0.04655332,2794.0,2793.9,7.1585]
[1643757694860,1.55203892,2794.0,2793.9,7.1585]
[1643757695118,2.65203892,2794.0,2793.9,5.54496705]
[1643757695515,3.93133892,2794.0,2793.9,4.93476705]
[1643757695914,2.83133892,2794.0,2793.9,4.93476705]
[1643757696116,1.73133892,2794.0,2793.9,4.93476705]
[1643757697115,5.08479912,2794.0,2793.9,4.58936705]
[1643757697519,1.1,2793.9,2792.8,0.1789]
[1643757697716,3.89104787,2793.8,2792.8,0.1789]
[1643757698015,1.51256798,2793.7,2792.8,0.1789]
[1643757698216,2.26626712,2793.6,2792.8,0.1789]
[1643757698418,1.51256798,2793.5,2792.8,0.1789]
[1643757698618,2.02566576,2793.4,2792.8,0.1789]
[1643757698847,2.03548895,2793.4,2792.8,0.1789]
[1643757699052,1.995,2793.9,2792.8,0.1789]
[1643757699053,5.44229269,2793.8,2792.8,0.1789]
[1643757699261,1.51283299,2793.7,2792.8,0.1789]
[1643757699451,2.06882189,2793.6,2792.8,0.1789]
[1643757699652,1.51283299,2793.5,2792.8,0.1789]
[1643757699855,2.02779953,2793.4,2792.8,0.1789]
[1643757700053,2.23679798,2793.7,2792.8,0.1789]
[1643757700256,1.51283679,2793.6,2792.8,0.1789]
[1643757700454,2.11576153,2793.5,2792.8,0.1789]
[1643757700753,1.51283679,2793.4,2792.8,0.1789]
[1643757700955,1.51283679,2793.4,2792.1,0.01284161]
[1643757700956,1.98675623,2793.3,2792.7,0.1789]
[1643757701152,2.00955911,2793.2,2792.7,0.1789]
[1643757701356,2.00955911,2793.2,2792.1,0.01284161]
[1643757701357,2.29738562,2793.6,2792.2,0.1789]
[1643757701553,1.51291809,2793.5,2792.2,0.1789]
[1643757701758,2.33414418,2793.4,2792.2,0.1789]
[1643757701953,1.51291809,2793.3,2792.2,0.1789]
[1643757702253,2.03697113,2793.2,2792.2,0.1789]
[1643757702454,2.63409704,2793.6,2792.2,1.0739]
[1643757702703,1.51291108,2793.5,2792.2,1.0739]
[1643757702904,2.36460176,2793.4,2792.2,0.1789]
[1643757703105,1.51291108,2793.3,2792.2,0.1789]
[1643757703305,2.52641509,2793.2,2792.2,0.1789]
[1643757703511,1.513025,2793.1,2792.2,0.1789]
[1643757703707,2.16223514,2793.0,2792.2,0.1789]
[1643757704115,0.3582,2793.4,2792.1,0.01284161]
[1643757704116,2.64537444,2793.3,2792.1,0.01284161]
[1643757704317,1.51307489,2793.2,2792.1,0.01284161]
[1643757704615,3.36289699,2793.1,2792.0,0.1789]
[1643757704811,3.36289699,2793.1,2791.8,0.1789]
[1643757704812,1.51307489,2793.0,2791.8,0.1789]
[1643757705011,2.30456741,2792.9,2791.8,0.1789]
[1643757705410,2.48386741,2792.9,2791.8,0.1789]
[1643757706446,0.1793,2792.9,2791.8,0.1789]
[1643757707047,2.50907203,2793.1,2791.9,0.89511]
[1643757707048,0.1789,2793.1,2791.9,0.89511]
[1643757707251,1.2373,2793.2,2792.0,0.01291152]
[1643757707648,2.11557177,2793.1,2792.0,0.01291152]
[1643757707850,2.29335996,2793.1,2791.8,0.1789]
[1643757708060,1.4162,2793.2,2792.1,0.01287228]
[1643757708250,3.0514,2793.8,2792.2,0.60935]
[1643757708251,0.1789,2793.7,2792.2,0.60935]
[1643757708447,0.1789,2793.7,2792.7,0.01279447]
[1643757709053,0.1789,2793.7,2792.8,0.89484]
[1643757709458,0.1789,2793.7,2792.7,0.01279447]
[1643757710109,0.1789,2793.7,2792.5,0.17935]
[1643757710300,3.0514,2793.8,2792.6,0.1789]
[1643757710301,3.2303,2793.8,2792.6,0.1789]
[1643757710501,1.51285715,2793.7,2792.4,0.1789]
[1643757710704,1.51285715,2793.7,2792.3,1.78976]
[1643757710705,0.1789,2793.6,2792.3,1.78976]
[1643757712505,1.51288841,2793.5,2792.3,1.78976]
[1643757713850,0.1793,2793.4,2792.3,1.78976]
[1643757714058,0.1793,2793.4,2792.2,0.1789]
[1643757714059,0.1789,2793.4,2792.2,0.1789]
[1643757714255,0.1789,2793.4,2792.1,1.1571172]
[1643757714455,0.1789,2793.4,2792.1,0.2620072]
[1643757714663,0.1789,2793.6,2792.2,0.1789]
[1643757714858,1.51289347,2793.5,2792.2,0.1789]
[1643757715661,1.51289347,2793.5,2792.2,1.96887]
[1643757716064,1.51289347,2793.5,2792.2,0.1789]
[1643757716863,1.51289347,2793.5,2792.3,0.89507]
[1643757716864,2.40801347,2793.5,2792.3,0.89507]
[1643757717064,0.1789,2793.6,2792.3,0.89507]
[1643757717703,1.5129174,2793.5,2792.3,0.89507]
[1643757717904,1.6922174,2793.5,2792.3,0.89507]
[1643757718103,1.5129174,2793.4,2792.3,0.89507]
[1643757718403,1.6918174,2793.4,2792.3,0.89507]
[1643757718604,0.1789,2793.4,2792.3,0.89507]
[1643757718805,1.074,2793.6,2792.3,0.89507]
[1643757719004,1.51295265,2793.5,2792.3,0.89507]
[1643757719406,1.074,2793.6,2792.3,0.89507]
[1643757720004,1.074,2793.6,2792.4,2.00057937]
[1643757720208,2.8647174,2793.7,2792.7,0.89494]
[1643757720209,0.1789,2793.7,2792.7,0.89494]
[1643757720509,4.2433,2793.8,2792.8,0.1789]
[1643757721747,4.2433,2793.8,2792.7,0.89494]
[1643757722547,4.24216706,2793.8,2792.7,0.89494]
[1643757723246,1.51277793,2793.7,2792.7,0.89494]
[1643757724450,4.24216706,2793.8,2792.7,0.89494]
[1643757724652,4.42146706,2793.8,2792.7,0.89494]
[1643757724854,1.51278965,2793.7,2792.6,0.1789]
[1643757725096,1.51278965,2793.7,2792.7,0.89496]
[1643757730361,1.51278965,2793.7,2792.5,0.1789]
[1643757731761,0.1789,2793.9,2792.7,0.89491]
[1643757731963,0.03947094,2794.0,2792.8,2.77242517]
[1643757732159,0.03947094,2794.0,2793.0,1.78935]
[1643757732607,0.03947094,2794.0,2793.1,2.00687622]
[1643757732804,0.03947094,2794.0,2793.0,1.78935]
[1643757733306,0.03947094,2794.0,2793.1,3.09412097]
[1643757733505,0.03947094,2794.0,2793.1,3.82412097]
[1643757733705,7.094e-05,2794.0,2793.3,0.01282631]
[1643757733913,7.094e-05,2794.0,2793.9,1.1122571]
[1643757734108,7.094e-05,2794.0,2793.9,1.7216071]
[1643757734308,7.094e-05,2794.0,2793.9,1.5159271]
[1643757734509,7.094e-05,2794.0,2793.9,8.4950771]
[1643757735313,7.094e-05,2794.0,2793.9,8.6739771]
[1643757735715,7.094e-05,2794.0,2793.9,8.8533271]
[1643757737154,7.094e-05,2794.0,2793.9,9.1533271]
[1643757737356,0.5,2795.0,2794.0,1.1]
[1643757737561,0.5,2795.0,2794.3,0.89413]
[1643757737760,0.5,2795.0,2794.4,10.3003933]
[1643757737955,0.5,2795.0,2794.4,31.6103933]
[1643757737956,0.49882068,2795.0,2794.4,31.6103933]
[1643757738156,2.18354019,2795.8,2794.5,0.12574138]
[1643757738363,11.22295113,2795.9,2795.1,0.01266829]
[1643757738364,1.51184952,2795.7,2795.1,0.01266829]
[1643757738558,11.04405113,2795.9,2795.3,0.8939]
[1643757738757,11.04405113,2795.9,2795.4,7.5846]
[1643757738963,11.04405113,2795.9,2795.4,7.8846]
[1643757739260,11.04405113,2795.9,2795.5,0.17935]
[1643757739464,11.04405113,2795.9,2795.6,7.1541]
[1643757739662,11.04405113,2795.9,2795.6,8.94182]
[1643757741011,11.04405113,2795.9,2795.6,5.54142769]
[1643757741215,1.51192231,2795.8,2795.6,5.54142769]
[1643757741810,2.09887459,2795.7,2795.6,5.54142769]
[1643757742010,3.6107969,2795.7,2795.6,5.54142769]
[1643757742211,11.04405113,2795.9,2795.6,5.54142769]
[1643757742811,1.51200766,2795.8,2795.6,5.54142769]
[1643757743015,1.69070766,2795.8,2795.6,5.54142769]
[1643757743209,1.51200766,2795.7,2795.6,5.54142769]
[1643757743411,1.69070766,2795.7,2795.6,5.54142769]
[1643757744061,3.02000766,2795.7,2794.4,0.25]
[1643757744262,3.02000766,2795.7,2794.1,0.27639994]
[1643757744263,4.84070766,2795.6,2794.1,0.27639994]
[1643757744458,1.51200766,2795.5,2794.1,0.27639994]
[1643757744658,0.1789,2795.4,2794.1,0.27639994]
[1643757744858,1.51200766,2795.3,2794.1,0.27639994]
[1643757745060,0.1789,2795.2,2794.1,0.27639994]
[1643757745257,1.51235675,2795.1,2794.1,0.27639994]
[1643757745663,0.1789,2795.2,2794.1,0.27639994]
[1643757746061,1.51239246,2795.1,2794.1,0.27639994]
[1643757746259,1.51239246,2795.0,2793.6,1.07351]
[1643757746457,2.6582,2795.3,2793.6,1.07351]
[1643757746657,1.51240542,2795.2,2793.6,1.07351]
[1643757746859,2.1789,2795.1,2793.6,1.07351]
[1643757747060,1.51240542,2795.0,2793.6,1.07351]
[1643757747609,0.1789,2795.1,2793.6,1.07351]
[1643757747811,0.1789,2795.2,2793.6,1.07351]
[1643757748008,0.1789,2795.2,2793.6,1.25286]
[1643757748213,0.1789,2795.2,2793.6,1.55286]
[1643757748409,0.1789,2795.2,2794.0,0.89445]
[1643757748609,2.49179089,2795.3,2794.0,0.89445]
[1643757748810,1.51232213,2795.2,2793.9,1.78889]
[1643757749014,2.37466147,2795.1,2793.6,0.1789]
[1643757749215,1.51232213,2795.0,2793.6,0.1789]
[1643757749512,2.8293994,2794.9,2793.6,0.1789]
[1643757749719,0.99999999,2794.6,2793.6,0.1789]
[1643757749913,2.6093,2794.5,2793.4,0.6]
[1643757750112,1.0737779,2794.4,2793.4,0.6]
[1643757750313,0.43,2794.3,2793.4,0.6]
[1643757750516,0.1789,2794.2,2793.4,0.5]
[1643757750917,0.1793,2794.1,2793.4,0.5]
[1643757751666,3.7595,2794.5,2793.4,0.5]
[1643757751864,3.7595,2794.5,2793.5,0.1789]
[1643757752067,3.7595,2794.5,2793.5,2.25748585]
[1643757752364,3.75838688,2794.5,2793.5,2.25748585]
[1643757752963,3.75838688,2794.5,2793.5,0.1789]
[1643757753166,3.75838688,2794.5,2793.8,0.89456]
[1643757753369,3.9832,2794.8,2793.6,1.78911]
[1643757753564,3.9832,2794.8,2793.7,0.1789]
[1643757753764,3.9832,2794.8,2793.7,2.2414498]
[1643757754171,1.4185,2794.9,2793.7,2.2414498]
[1643757754372,1.4185,2794.9,2793.7,2.27785203]
[1643757754373,1.2396,2794.9,2793.7,2.27785203]
[1643757754673,1.2396,2794.9,2794.0,0.89455]
[1643757755310,1.1721,2795.2,2794.1,2.0]
[1643757755514,0.1789,2795.5,2794.2,0.37042192]
[1643757755712,0.1789,2795.8,2794.3,3.32444]
[1643757755915,11.04687771,2795.9,2794.4,0.35805]
[1643757756111,11.04687771,2795.9,2794.5,2.43]
[1643757756112,1.51193127,2795.8,2794.5,2.43]
[1643757756412,1.51193127,2795.8,2794.6,0.1787]
[1643757756613,11.04405113,2795.9,2794.6,0.1787]
[1643757756614,11.04405113,2795.9,2794.8,21.01]
[1643757756811,11.04405113,2795.9,2795.2,0.89392]
[1643757757014,11.04405113,2795.9,2795.3,0.1787]
[1643757758616,11.04405113,2795.9,2795.2,0.1787]
[1643757758864,11.04405113,2795.9,2795.4,1.78798]
[1643757759072,11.04405113,2795.9,2795.4,1.96668]
[1643757759668,11.04405113,2795.9,2795.4,2.21668]
[1643757760272,11.04405113,2795.9,2795.4,0.4287]
[1643757760469,11.04405113,2795.9,2795.4,0.25]
[1643757761270,11.04405113,2795.9,2795.4,2.39933169]
[1643757761470,11.04405113,2795.9,2795.5,0.17935]
[1643757761668,11.04405113,2795.9,2795.6,0.1787]
[1643757761869,11.04405113,2795.9,2795.8,1.37935]
[1643757761870,5.68226113,2795.9,2795.8,1.37935]
[1643757762068,5.68226113,2795.9,2795.8,1.98805]
[1643757762470,5.68226113,2795.9,2795.8,5.64935671]
[1643757762471,0.32109113,2795.9,2795.8,5.64935671]
[1643757762710,0.32109113,2795.9,2795.8,7.24935671]
[1643757762910,0.32109113,2795.9,2795.8,6.04935671]
[1643757763115,0.01,2796.7,2795.8,6.04935671]
[1643757763116,0.01,2796.7,2796.1,0.89358]
[1643757763512,0.01,2796.7,2796.2,0.25]
[1643757763717,0.9806012,2796.8,2796.2,0.25]
[1643757763916,1.51152306,2796.7,2796.2,0.25]
[1643757764319,0.9806012,2796.8,2796.4,0.89365]
[1643757764520,0.9806012,2796.8,2796.5,1.78719]
[1643757764918,0.9806012,2796.8,2796.5,0.17501151]
[1643757766463,2.1940775,2798.5,2797.8,0.18673672]
[1643757766660,2.45987998,2799.3,2797.8,0.18673672]
[1643757766661,0.57091773,2799.0,2798.4,0.01267234]
[1643757766863,0.58091773,2799.6,2798.9,0.01208753]
[1643757767060,1.51044486,2799.5,2798.5,0.25]
[1643757767260,0.048316,2799.4,2798.5,0.25]
[1643757767458,0.99999999,2798.9,2797.8,0.18673672]
[1643757767659,24.52044486,2798.8,2797.8,0.18673672]
[1643757767856,0.99999999,2798.5,2797.8,0.18673672]
[1643757768155,21.01,2798.6,2797.8,0.18673672]
[1643757768156,1.55307662,2798.4,2797.8,0.18673672]
[1643757768354,1.51044486,2798.3,2797.8,0.18673672]
[1643757768558,0.3,2798.2,2797.8,0.18673672]
[1643757768758,1.51044486,2798.1,2797.8,0.18673672]
[1643757768960,1.55137135,2798.1,2797.8,0.18673672]
[1643757769164,4.4437,2798.7,2797.8,0.18673672]
[1643757769165,0.04035807,2798.0,2797.8,0.18673672]
[1643757769561,0.04376861,2798.6,2797.8,0.18673672]
[1643757769763,1.51076812,2798.5,2797.8,0.18673672]
[1643757769963,1.55396831,2798.5,2797.8,0.18673672]
[1643757770203,1.55339988,2798.4,2797.8,0.18673672]
[1643757770409,1.25,2798.3,2797.3,0.41673672]
[1643757770703,0.04149492,2798.2,2797.3,1.31005672]
[1643757770905,0.04149492,2798.2,2797.3,1.48875672]
[1643757771113,1.3612,2798.7,2797.3,1.48875672]
[1643757771114,0.04092649,2798.1,2797.3,1.48875672]
[1643757771316,0.04092649,2798.1,2797.4,7.1487]
[1643757771510,0.04035807,2798.0,2797.5,0.6087]
[1643757771708,0.04035807,2798.0,2797.6,7.149]
[1643757771910,0.04433703,2798.7,2797.7,1.50189]
[1643757772208,0.04433703,2798.7,2797.7,0.6087]
[1643757772209,1.55444258,2798.6,2797.7,0.6087]
[1643757772409,1.55444258,2798.6,2797.6,7.149]
[1643757772410,3.79234279,2798.5,2797.6,7.149]
[1643757772608,3.55757381,2798.4,2797.6,7.149]
[1643757772810,3.55727744,2798.3,2797.6,7.149]
[1643757773008,1.51067397,2798.2,2797.6,7.149]
[1643757773209,1.55216889,2798.2,2797.6,7.149]
[1643757773407,2.99070855,2798.7,2797.6,7.149]
[1643757773608,0.99999999,2798.5,2797.6,7.149]
[1643757773870,21.01,2798.3,2797.6,7.149]
[1643757774071,1.51088309,2798.2,2797.6,7.149]
[1643757774270,23.69958309,2798.2,2797.6,7.149]
[1643757774469,1.51088309,2798.1,2797.6,7.149]
[1643757774675,0.1787,2798.0,2797.6,7.149]
[1643757775071,0.1787,2798.2,2797.6,7.149]
[1643757775270,1.51097415,2798.1,2797.6,7.149]
[1643757775771,1.51097415,2798.0,2797.6,7.149]
[1643757775975,2.06778309,2797.9,2797.6,7.149]
[1643757776172,1.51105245,2797.8,2797.6,7.149]
[1643757776376,1.32436534,2797.8,2797.6,7.149]
[1643757776572,2.04666146,2797.7,2797.6,7.149]
[1643757776774,1.1787,2798.1,2797.6,7.149]
[1643757776775,2.1440813,2798.0,2797.6,7.149]
[1643757776972,2.39133858,2798.0,2797.6,7.149]
[1643757777172,3.39133858,2798.0,2797.6,7.149]
[1643757778318,0.1787,2798.1,2797.6,7.149]
[1643757778510,0.1787,2798.5,2797.6,7.149]
[1643757778711,5.7092,2798.8,2797.6,6.999]
[1643757778712,2.1786,2798.7,2797.6,6.999]
[1643757778918,2.0,2798.7,2797.6,6.999]
[1643757779114,21.01,2798.6,2797.7,0.00156149]
[1643757779313,21.01,2798.4,2797.7,0.00156149]
[1643757779513,0.99999999,2798.3,2797.7,0.00156149]
[1643757779716,0.1786,2798.6,2797.7,0.00156149]
[1643757779717,3.17859999,2798.6,2797.7,0.00156149]
[1643757780313,22.01,2798.5,2797.7,0.00156149]
[1643757780513,2.71968543,2798.4,2797.7,0.00156149]
[1643757780713,21.00890316,2798.3,2797.7,0.00156149]
[1643757780916,2.2230571,2798.2,2797.7,0.00156149]
[1643757781114,1.0,2798.5,2797.7,0.00156149]
[1643757781115,2.07642276,2798.4,2797.7,0.00156149]
[1643757781363,0.3,2798.4,2797.7,0.00156149]
[1643757781565,3.16778102,2798.5,2797.7,0.00156149]
[1643757781761,1.0,2798.4,2797.7,0.00156149]
[1643757782163,0.3,2798.4,2797.7,0.00156149]
[1643757782360,2.07806767,2798.3,2797.7,0.00156149]
[1643757782561,1.0,2798.4,2797.7,0.00156149]
[1643757782760,2.38650793,2798.5,2797.7,0.00156149]
[1643757782761,0.3,2798.2,2797.7,0.00156149]
[1643757783160,3.68650793,2798.5,2797.7,0.00156149]
[1643757783862,24.69650793,2798.5,2797.7,0.00156149]
[1643757784464,1.6,2798.5,2797.7,0.00156149]
[1643757784865,1.6,2798.5,2797.6,6.999]
[1643757784866,0.6,2798.5,2797.6,5.38928117]
[1643757785102,1.1786,2798.7,2797.6,5.38928117]
[1643757785103,2.10981308,2798.6,2797.6,5.38928117]
[1643757785905,23.11981308,2798.6,2797.6,5.38928117]
[1643757786306,1.3,2798.5,2797.6,5.38928117]
[1643757786507,2.22688172,2798.4,2797.6,5.38928117]
[1643757788007,21.01,2798.3,2797.6,5.38928117]